[Event "Gibraltar Amateurs A 2019"]
[Site "Caleta"]
[Date "2019.01.22"]
[Round "2"]
[White "Kurzok, Zenon"]
[Black "Bryant, Richard B E"]
[Result "0-1"]
[ECO "A00"]
[WhiteElo "1722"]
[BlackElo "1862"]
[Annotator "NA"]
[PlyCount "74"]
[EventDate "2019.01.18"]
[EventType "swiss"]
[EventCountry "GGB"]
[SourceTitle "playchess.com"]
[Source "ChessBase"]
[SourceQuality "1"]
[TimeControl "6600+10"]

1. g3 {[%emt 0:00:00]} d5 {[%emt 0:00:04]} 2. Bg2 {[%emt 0:00:23]} c6 {[%emt 0:00:11]} 3. d3 {[%emt 0:02:18]} Nf6 {[%emt 0:00:48]} 4. Nd2 {[%emt 0:02:00]} e6 {[%emt 0:00:36]} 5. Ngf3 {[%emt 0:02:11]} Nbd7 {[%emt 0:00:52]} 6. e4 {[%emt 0:03:58]} Qc7 {[%emt 0:00:48]} 7. Qe2 {[%emt 0:00:41]} dxe4 {[%emt 0:02:14]} 8. dxe4 {[%emt 0:00:25]} Be7 {[%emt 0:00:35]} 9. O-O {[%emt 0:03:44]} O-O {[%emt 0:00:52]} 10. Re1 {[%emt 0:05:06]} b5 {[%emt 0:04:03]} 11. b3 {[%emt 0:05:20]} a5 {[%emt 0:01:34]} 12. Bb2 {[%emt 0:01:10]} Bb7 {[%emt 0:00:40]} 13. c4 {[%emt 0:07:13]} b4 {[%emt 0:00:41]} 14. e5 {[%emt 0:00:21]} Ne8 {[%emt 0:00:20]} 15. Ne4 {[%emt 0:00:55]} Nc5 {[%emt 0:01:12]} 16. Nxc5 {[%emt 0:02:54]} Bxc5 {[%emt 0:00:07]} 17. Bd4 {[%emt 0:00:25]} Be7 {[%emt 0:01:53]} 18. Rad1 {[%emt 0:00:56]} a4 {[%emt 0:01:01]} 19. Qc2 {[%emt 0:08:53]} c5 {[%emt 0:02:21]} 20. Be3 {[%emt 0:00:04]} Qc6 {[%emt 0:03:15]} 21. Nh4 {[%emt 0:00:33]} Qc8 {[%emt 0:01:12]} 22. Rd2 {[%emt 0:00:29]} axb3 {[%emt 0:03:36]} 23. axb3 {[%emt 0:00:03]} g6 {[%emt 0:00:40]} 24. Bxb7 {[%emt 0:02:24]} Qxb7 {[%emt 0:00:07]} 25. Ng2 {[%emt 0:00:19]} Ng7 {[%emt 0:00:32]} 26. Red1 {[%emt 0:01:21]} Rfe8 {[%emt 0:01:58]} 27. h3 {[%emt 0:06:30]} Nf5 {[%emt 0:00:59]} 28. Rd7 {[%emt 0:06:06]} Qc6 {[%emt 0:00:22]} 29. R7d2 {[%emt 0:03:39]} Ra3 {[%emt 0:01:06]} 30. Kh2 {[%emt 0:08:53]} Rea8 {[%emt 0:02:02]} 31. g4 {[%emt 0:03:34]} Nxe3 {[%emt 0:00:30]} 32. Nxe3 {[%emt 0:00:33]} Qf3 {[%emt 0:00:54]} 33. Rf1 {[%emt 0:04:13]} Bg5 {[%emt 0:00:30]} 34. Re2 {[%emt 0:00:51]} Bf4+ {[%emt 0:01:55]} 35. Kg1 {[%emt 0:00:28]} Qxh3 {[%emt 0:01:21]} 36. f3 {[%emt 0:01:59]} Bxe3+ {[%emt 0:00:29]} 37. Rxe3 {[%emt 0:00:02]} Ra2 {[%emt 0:00:15]} 0-1

[Event "Gibraltar Amateurs A 2019"]
[Site "Caleta"]
[Date "2019.01.22"]
[Round "2"]
[White "Bauer, Dieter"]
[Black "Garcia-Blazquez Perez, Manuel"]
[Result "1/2-1/2"]
[ECO "A25"]
[WhiteElo "1714"]
[BlackElo "1849"]
[Annotator "NA"]
[PlyCount "110"]
[EventDate "2019.01.18"]
[EventType "swiss"]
[EventCountry "GGB"]
[SourceTitle "playchess.com"]
[Source "ChessBase"]
[SourceQuality "1"]
[TimeControl "6600+10"]

1. c4 {[%emt 0:00:00]} f5 {[%emt 0:00:00]} 2. g3 {[%emt 0:00:37]} Nf6 {[%emt 0:00:00]} 3. Bg2 {[%emt 0:00:13]} g6 {[%emt 0:00:04]} 4. d3 {[%emt 0:01:27]} Bg7 {[%emt 0:00:05]} 5. e3 {[%emt 0:02:03]} O-O {[%emt 0:00:05]} 6. Ne2 {[%emt 0:00:45]} d6 {[%emt 0:00:06]} 7. Nbc3 {[%emt 0:00:45]} e5 {[%emt 0:00:08]} 8. O-O {[%emt 0:00:20]} Nc6 {[%emt 0:01:14]} 9. Rb1 {[%emt 0:01:46]} h6 {[%emt 0:00:07]} 10. f4 {[%emt 0:01:31]} g5 {[%emt 0:10:09]} 11. b4 {[%emt 0:01:57]} Qe8 {[%emt 0:00:41]} 12. b5 {[%emt 0:02:04]} Ne7 {[%emt 0:00:03]} 13. Ba3 {[%emt 0:04:56]} a6 {[%emt 0:26:39]} 14. b6 {[%emt 0:04:29]} exf4 {[%emt 0:04:56]} 15. gxf4 {[%emt 0:02:25]} c5 {[%emt 0:00:37]} 16. Bc1 {[%emt 0:01:12]} Ng6 {[%emt 0:08:48]} 17. Nd5 {[%emt 0:03:37]} Nxd5 {[%emt 0:00:05]} 18. Bxd5+ {[%emt 0:00:38]} Kh8 {[%emt 0:00:03]} 19. Ng3 {[%emt 0:05:15]} gxf4 {[%emt 0:01:04]} 20. exf4 {[%emt 0:00:54]} Bd4+ {[%emt 0:00:11]} 21. Kh1 {[%emt 0:00:35]} Rb8 {[%emt 0:09:36]} 22. Re1 {[%emt 0:03:11]} Qd8 {[%emt 0:00:09]} 23. Qh5 {[%emt 0:00:48]} Kg7 {[%emt 0:00:10]} 24. Qe2 {[%emt 0:06:46]} Bd7 {[%emt 0:01:08]} 25. Nh5+ {[%emt 0:00:37]} Kh7 {[%emt 0:02:42]} 26. Bb2 {[%emt 0:08:47]} Re8 {[%emt 0:05:20]} 27. Qc2 {[%emt 0:04:32]} Qh4 {[%emt 0:02:32]} 28. Rxe8 {[%emt 0:04:13]} Rxe8 {[%emt 0:01:35]} 29. Bxd4 {[%emt 0:02:51]} cxd4 {[%emt 0:01:35]} 30. Ng3 {[%emt 0:09:51]} Bc8 {[%emt 0:04:02]} 31. Qf2 {[%emt 0:03:32]} Qxf4 {[%emt 0:03:48]} 32. Qg1 {[%emt 0:07:47]} Qe3 {[%emt 0:02:02]} 33. Nh5 {[%emt 0:03:14]} Qxg1+ {[%emt 0:04:02]} 34. Rxg1 {[%emt 0:00:24]} Rf8 {[%emt 0:01:05]} 35. Re1 {[%emt 0:04:48]} f4 {[%emt 0:00:53]} 36. Be4 {[%emt 0:02:47]} Bg4 {[%emt 0:06:49]} 37. Nxf4 {[%emt 0:02:50]} Rxf4 {[%emt 0:00:11]} 38. Bxb7 {[%emt 0:00:51]} Bf3+ {[%emt 0:05:12]} 39. Bxf3 {[%emt 0:02:03]} Rxf3 {[%emt 0:00:03]} 40. b7 {[%emt 0:01:20]} Rf7 {[%emt 0:00:04]} 41. Rb1 {[%emt 0:00:01]} Rf8 {[%emt 0:00:10]} 42. Rb6 {[%emt 0:00:25]} Rb8 {[%emt 0:00:03]} 43. Kg1 {[%emt 0:02:06]} Nf4 {[%emt 0:00:16]} 44. Rxd6 {[%emt 0:00:24]} Nxd3 {[%emt 0:00:17]} 45. Rxd4 {[%emt 0:00:41]} Rxb7 {[%emt 0:00:28]} 46. a4 {[%emt 0:00:42]} Nb4 {[%emt 0:01:05]} 47. c5 {[%emt 0:00:40]} a5 {[%emt 0:00:07]} 48. Rc4 {[%emt 0:00:25]} Rc7 {[%emt 0:00:07]} 49. c6 {[%emt 0:00:12]} Nxc6 {[%emt 0:00:35]} 50. Rc5 {[%emt 0:00:19]} Kg6 {[%emt 0:00:22]} 51. Kf2 {[%emt 0:00:09]} Kf6 {[%emt 0:00:09]} 52. Ke3 {[%emt 0:00:15]} Ke6 {[%emt 0:00:17]} 53. Ke4 {[%emt 0:00:07]} Rh7 {[%emt 0:00:10]} 54. Rd5 {[%emt 0:00:19] Kd6 [%clk 00:06:43] Rc5 [%clk 00:03:35] [%emt 00:00:19] Kc7 [%clk 00:05:52] Kf4 [%clk 00:02:53] [%emt 00:01:53]} Re7 {[%emt 0:01:57]} 55. Rh5 {[%emt 0:01:35] Re1 [%clk 00:05:01] Rxh6 [%clk 00:02:04] [%emt 00:00:20] Ra1 [%clk 00:05:09] Kg5 [%clk 00:01:58] Rxa4 [%clk 00:05:05] h4 [%clk 00:01:55] [%emt 00:00:27] Ra1 [%clk 00:05:08]} Kf6+ {[%emt 0:03:14] Rg1 [%clk 00:05:01] Rh8 [%clk 00:01:48] [%emt 00:00:28] a4 [%clk 00:04:32] Re8 [%clk 00:01:22] [%emt 00:01:15] Kb7 [%clk 00:04:06] Re2 [%clk 00:01:24] [%emt 00:00:44] a3 [%clk 00:04:05] h5 [%clk 00:01:33] [%emt 00:00:13] Nb4 [%clk 00:03:57] Ra2 [%clk 00:01:42] [%emt 00:00:19]} 1/2-1/2

[Event "Gibraltar Amateurs A 2019"]
[Site "Caleta"]
[Date "2019.01.22"]
[Round "2"]
[White "Towers, Brian"]
[Black "Wilson, Matthew R"]
[Result "0-1"]
[ECO "D02"]
[WhiteElo "1710"]
[BlackElo "1822"]
[Annotator "NA"]
[PlyCount "112"]
[EventDate "2019.01.18"]
[EventType "swiss"]
[EventCountry "GGB"]
[SourceTitle "playchess.com"]
[Source "ChessBase"]
[SourceQuality "1"]
[TimeControl "6600+10"]

1. d4 {[%emt 0:00:00]} Nf6 {[%emt 0:00:00]} 2. Bf4 {[%emt 0:00:03]} e6 {[%emt 0:00:20]} 3. Nf3 {[%emt 0:00:29]} d5 {[%emt 0:00:07]} 4. e3 {[%emt 0:00:13]} c5 {[%emt 0:00:05]} 5. c3 {[%emt 0:00:17]} Nc6 {[%emt 0:00:06]} 6. Nbd2 {[%emt 0:00:36]} cxd4 {[%emt 0:00:06]} 7. exd4 {[%emt 0:00:08]} Nh5 {[%emt 0:00:04]} 8. Bg5 {[%emt 0:01:08]} f6 {[%emt 0:00:08]} 9. Ne5 {[%emt 0:03:25]} g6 {[%emt 0:05:27]} 10. Nxc6 {[%emt 0:00:21]} bxc6 {[%emt 0:00:05]} 11. Bh4 {[%emt 0:02:36]} Bd6 {[%emt 0:02:25]} 12. Nf3 {[%emt 0:14:17]} O-O {[%emt 0:09:15]} 13. Bd3 {[%emt 0:02:54]} Qc7 {[%emt 0:03:39]} 14. O-O {[%emt 0:04:41]} e5 {[%emt 0:01:27]} 15. dxe5 {[%emt 0:08:13]} fxe5 {[%emt 0:02:00]} 16. Be2 {[%emt 0:03:09]} Nf4 {[%emt 0:09:06]} 17. c4 {[%emt 0:09:57]} d4 {[%emt 0:20:50]} 18. Rc1 {[%emt 0:15:58]} c5 {[%emt 0:03:47]} 19. h3 {[%emt 0:09:47]} e4 {[%emt 0:04:00]} 20. Ne1 {[%emt 0:05:15]} d3 {[%emt 0:02:51]} 21. Nxd3 {[%emt 0:00:54]} exd3 {[%emt 0:02:09]} 22. Bxd3 {[%emt 0:00:13]} Bb7 {[%emt 0:05:58]} 23. f3 {[%emt 0:01:18]} Be5 {[%emt 0:02:27]} 24. Qc2 {[%emt 0:02:17]} Nxd3 {[%emt 0:03:28]} 25. Qxd3 {[%emt 0:00:02]} Bxb2 {[%emt 0:00:16]} 26. Rc2 {[%emt 0:02:43]} Bd4+ {[%emt 0:00:17]} 27. Kh1 {[%emt 0:00:09]} Rae8 {[%emt 0:01:31]} 28. Re2 {[%emt 0:01:03]} Rxe2 {[%emt 0:06:12]} 29. Qxe2 {[%emt 0:00:02]} Qf7 {[%emt 0:01:37]} 30. Bg3 {[%emt 0:01:54]} Ba6 {[%emt 0:01:35]} 31. Rc1 {[%emt 0:00:10]} Re8 {[%emt 0:00:52]} 32. Qf1 {[%emt 0:04:39]} Re6 {[%emt 0:03:59]} 33. Rc2 {[%emt 0:01:32]} Rb6 {[%emt 0:00:43]} 34. Bf2 {[%emt 0:04:04]} Qf5 {[%emt 0:07:01]} 35. Qe2 {[%emt 0:02:43]} Rb1+ {[%emt 0:01:25]} 36. Kh2 {[%emt 0:00:13]} Qe5+ {[%emt 0:01:03]} 37. Qxe5 {[%emt 0:00:54]} Bxe5+ {[%emt 0:00:03]} 38. g3 {[%emt 0:00:07]} Bd4 {[%emt 0:00:58]} 39. Kg2 {[%emt 0:02:15]} Bxf2 {[%emt 0:01:11]} 40. Kxf2 {[%emt 0:00:02]} Rb7 {[%emt 0:01:47]} 41. Ke3 {[%emt 0:00:46]} Rd7 {[%emt 0:00:20]} 42. a3 {[%emt 0:01:34]} Kf7 {[%emt 0:00:19]} 43. f4 {[%emt 0:00:07]} Ke7 {[%emt 0:01:02]} 44. Rc3 {[%emt 0:00:03]} Rd4 {[%emt 0:00:25]} 45. g4 {[%emt 0:00:46]} Rxc4 {[%emt 0:00:18]} 46. Rb3 {[%emt 0:01:11]} Rc1 {[%emt 0:01:06]} 47. Kd2 {[%emt 0:00:35]} Rh1 {[%emt 0:00:19]} 48. Re3+ {[%emt 0:00:05]} Kd7 {[%emt 0:00:18]} 49. a4 {[%emt 0:00:29]} Ra1 {[%emt 0:00:10]} 50. Re4 {[%emt 0:00:27]} Ra2+ {[%emt 0:00:27]} 51. Kc1 {[%emt 0:00:25]} Rh2 {[%emt 0:00:13]} 52. Re3 {[%emt 0:00:09]} Rf2 {[%emt 0:00:15]} 53. Re4 {[%emt 0:00:35]} Bb7 {[%emt 0:00:44]} 54. Rc4 {[%emt 0:00:02]} Kc6 {[%emt 0:00:00]} 55. Re4 {[%emt 0:00:39]} Kd6 {[%emt 0:00:50]} 56. Rc4 {[%emt 0:00:21]} Kd5 {[%emt 0:00:08]} 0-1

[Event "Gibraltar Amateurs A 2019"]
[Site "Caleta"]
[Date "2019.01.22"]
[Round "2"]
[White "D`haluin, Wim"]
[Black "Manukonda Arun"]
[Result "0-1"]
[ECO "D02"]
[WhiteElo "1702"]
[BlackElo "1814"]
[Annotator "NA"]
[PlyCount "40"]
[EventDate "2019.01.18"]
[EventType "swiss"]
[EventCountry "GGB"]
[SourceTitle "playchess.com"]
[Source "ChessBase"]
[SourceQuality "1"]
[TimeControl "6600+10"]

1. d4 {[%emt 0:04:36]} d5 {[%emt 0:00:00]} 2. Nf3 {[%emt 0:00:11]} Nf6 {[%emt 0:00:01]} 3. Bf4 {[%emt 0:00:26]} c5 {[%emt 0:00:12]} 4. dxc5 {[%emt 0:02:50]} e6 {[%emt 0:00:35]} 5. e3 {[%emt 0:05:20]} Bxc5 {[%emt 0:00:14]} 6. Nbd2 {[%emt 0:02:17]} O-O {[%emt 0:02:15]} 7. Be2 {[%emt 0:00:35]} Qb6 {[%emt 0:07:52]} 8. Nb3 {[%emt 0:02:25]} Bd6 {[%emt 0:00:22]} 9. Bxd6 {[%emt 0:02:51]} Qxd6 {[%emt 0:00:03]} 10. O-O {[%emt 0:01:31]} e5 {[%emt 0:06:43]} 11. c4 {[%emt 0:02:38]} e4 {[%emt 0:01:13]} 12. Nfd4 {[%emt 0:01:54]} dxc4 {[%emt 0:10:21]} 13. Bxc4 {[%emt 0:01:56]} Ng4 {[%emt 0:02:12]} 14. g3 {[%emt 0:04:19]} Qh6 {[%emt 0:00:51]} 15. h4 {[%emt 0:01:47]} Ne5 {[%emt 0:06:10]} 16. Qc2 {[%emt 0:09:00]} Bh3 {[%emt 0:03:33]} 17. Bd5 {[%emt 0:14:24]} Nbd7 {[%emt 0:39:48]} 18. Rfb1 {[%emt 0:08:33]} Nf6 {[%emt 0:08:37]} 19. Bxe4 {[%emt 0:05:29]} Rac8 {[%emt 0:00:47]} 20. Qe2 {[%emt 0:05:49]} Nxe4 {[%emt 0:00:25]} 0-1

[Event "Gibraltar Amateurs A 2019"]
[Site "Caleta"]
[Date "2019.01.22"]
[Round "2"]
[White "Whitworth, John"]
[Black "Dennis, Nigel W"]
[Result "1-0"]
[ECO "B22"]
[WhiteElo "1690"]
[BlackElo "1805"]
[Annotator "NA"]
[PlyCount "33"]
[EventDate "2019.01.18"]
[EventType "swiss"]
[EventCountry "GGB"]
[SourceTitle "playchess.com"]
[Source "ChessBase"]
[SourceQuality "1"]
[TimeControl "6600+10"]

1. e4 {[%emt 0:00:00]} c5 {[%emt 0:00:13]} 2. c3 {[%emt 0:00:05]} d5 {[%emt 0:00:11]} 3. exd5 {[%emt 0:00:07]} Qxd5 {[%emt 0:00:05]} 4. d4 {[%emt 0:00:16]} Nf6 {[%emt 0:00:27]} 5. Nf3 {[%emt 0:01:55]} e6 {[%emt 0:00:37]} 6. Na3 {[%emt 0:00:38]} cxd4 {[%emt 0:02:37]} 7. Nb5 {[%emt 0:00:43]} Qd8 {[%emt 0:00:23]} 8. Qxd4 {[%emt 0:02:25]} a6 {[%emt 0:14:16]} 9. Qxd8+ {[%emt 0:00:41]} Kxd8 {[%emt 0:00:10]} 10. Nbd4 {[%emt 0:00:35]} Bd6 {[%emt 0:01:35]} 11. Bg5 {[%emt 0:03:30]} Nbd7 {[%emt 0:02:53]} 12. O-O-O {[%emt 0:02:07]} Ke7 {[%emt 0:00:17]} 13. Bc4 {[%emt 0:05:04]} h6 {[%emt 0:01:32]} 14. Bxf6+ {[%emt 0:15:45]} Nxf6 {[%emt 0:00:13]} 15. Rhe1 {[%emt 0:01:07]} Bd7 {[%emt 0:03:37]} 16. Nf5+ {[%emt 0:00:56]} Kd8 {[%emt 0:01:44]} 17. Nxd6 {[%emt 0:01:31]} 1-0

[Event "Gibraltar Amateurs A 2019"]
[Site "Caleta"]
[Date "2019.01.23"]
[Round "3"]
[White "Pink, Joshua"]
[Black "Kovacevic, Aleksandar S"]
[Result "1/2-1/2"]
[ECO "D38"]
[WhiteElo "1890"]
[BlackElo "1793"]
[Annotator "NA"]
[PlyCount "104"]
[EventDate "2019.01.18"]
[EventType "swiss"]
[EventCountry "GGB"]
[SourceTitle "playchess.com"]
[Source "ChessBase"]
[SourceQuality "1"]
[TimeControl "6600+10"]

1. d4 {[%emt 0:00:04]} Nf6 {[%emt 0:00:00]} 2. c4 {[%emt 0:00:44]} e6 {[%emt 0:00:25]} 3. Nf3 {[%emt 0:00:09]} d5 {[%emt 0:00:34]} 4. Nc3 {[%emt 0:00:12]} Bb4 {[%emt 0:00:19]} 5. cxd5 {[%emt 0:01:24]} exd5 {[%emt 0:01:25]} 6. Bg5 {[%emt 0:01:01]} O-O {[%emt 0:01:08]} 7. e3 {[%emt 0:00:28]} c6 {[%emt 0:00:43] D38: Queen's Gambit Declined: Ragozin Defence (4 Nf3 Bb4)} (7... h6 8. Bh4 Bf5 9. Qb3 Bxc3+ 10. bxc3 Nbd7 11. Be2 c5 12. dxc5 g5 13. Nd4 Bg6 14. c6 bxc6 15. Nxc6 {½-½ (46) So,W (2792)-Karjakin,S (2753) Wijk aan Zee 2018}) 8. Bd3 {[%emt 0:00:14]} h6 {[%emt 0:00:35]} 9. Bh4 {[%emt 0:00:36]} Nbd7 {[%emt 0:00:57]} 10. O-O {[%emt 0:00:12]} Qc7 {[%emt 0:00:59]} 11. Bg3 {[%emt 0:04:23]} Bd6 {[%emt 0:00:26]} 12. Qe2 {[%emt 0:00:28]} Re8 {[%emt 0:00:27]} 13. Rfc1 $146 {[%emt 0:01:10]} ({Predecessor:} 13. Bxd6 Qxd6 14. Rfe1 b6 15. Rad1 Qc7 16. e4 dxe4 17. Nxe4 Nxe4 18. Bxe4 Bb7 19. d5 c5 20. d6 {½-½ (20) Nemkin,R (1200)-Kazak,A (1600) Alta 2003}) 13... Bxg3 {[%emt 0:02:05]} 14. hxg3 {[%emt 0:00:46]} Qd6 {[%emt 0:01:22]} 15. Nd2 {[%emt 0:05:59]} Nf8 {[%emt 0:03:52]} 16. Rab1 {[%emt 0:00:24]} Bg4 {[%emt 0:00:52]} 17. Qf1 {[%emt 0:00:37]} Rad8 {[%emt 0:01:30]} 18. b4 {[%emt 0:02:15]} Bh5 {[%emt 0:05:36]} 19. b5 {[%emt 0:06:06]} Bg6 {[%emt 0:00:31]} 20. Bxg6 {[%emt 0:00:29]} Nxg6 {[%emt 0:02:03]} 21. bxc6 {[%emt 0:00:10]} bxc6 {[%emt 0:00:17]} 22. Na4 {[%emt 0:05:01]} Rb8 {[%emt 0:14:07]} 23. Nc5 {[%emt 0:00:49]} Rxb1 {[%emt 0:00:33]} 24. Rxb1 {[%emt 0:00:10]} Rb8 {[%emt 0:00:22]} 25. a4 {[%emt 0:03:53]} Nf8 {[%emt 0:16:18]} 26. a5 {[%emt 0:03:03]} Ne6 {[%emt 0:07:48]} 27. Nxe6 {[%emt 0:00:40]} fxe6 {[%emt 0:00:04]} 28. a6 {[%emt 0:03:06]} Rxb1 {[%emt 0:01:23]} 29. Qxb1 {[%emt 0:00:09]} Qa3 {[%emt 0:01:37]} 30. Qb8+ {[%emt 0:11:20]} Kh7 {[%emt 0:00:14]} 31. Qc8 {[%emt 0:12:31]} Qa1+ {[%emt 0:04:37]} 32. Nf1 {[%emt 0:02:02]} Ne4 {[%emt 0:01:13]} 33. Qxe6 {[%emt 0:01:32]} Qxa6 {[%emt 0:01:43]} 34. f3 {[%emt 0:01:13]} Nf6 {[%emt 0:00:43]} 35. g4 {[%emt 0:01:15]} Qb7 {[%emt 0:01:49]} 36. Qf5+ {[%emt 0:02:32]} Kg8 {[%emt 0:00:59]} 37. Ng3 {[%emt 0:02:05]} Qd7 {[%emt 0:02:56]} 38. Kf2 {[%emt 0:04:17]} a5 {[%emt 0:01:12]} 39. Ke2 {[%emt 0:00:36]} Qc7 {[%emt 0:07:36]} 40. Qe6+ {[%emt 0:00:13]} Kf8 {[%emt 0:00:49]} 41. Nf5 {[%emt 0:01:38]} a4 {[%emt 0:02:32]} 42. Kd3 {[%emt 0:02:51]} Qb7 {[%emt 0:06:25]} 43. Qd6+ {[%emt 0:00:27]} Kg8 {[%emt 0:00:28] [#]} 44. Ne7+ {[%emt 0:05:02]} (44. Qe7 $1 $16 {[%cal Re7b7]} Qb5+ 45. Kd2 Qb2+ 46. Ke1 Qc3+ 47. Kf2 Qb2+ 48. Kg1 Qb1+ 49. Kh2 Qb8+ 50. Kh3) 44... Kf7 {[%emt 0:01:10]} 45. Nxc6 {[%emt 0:01:09]} Qb3+ {[%emt 0:00:40]} 46. Ke2 {[%emt 0:00:53]} a3 {[%emt 0:01:10]} 47. Ne5+ {[%emt 0:00:40]} Kg8 {[%emt 0:02:40]} 48. Qe6+ $11 {[%emt 0:00:39]} Kh7 {[%emt 0:00:30]} 49. Qf5+ {[%emt 0:01:42]} Kg8 {[%emt 0:00:29]} 50. Qc8+ {[%emt 0:02:31]} Kh7 {[%emt 0:00:16]} 51. Qf5+ {[%emt 0:07:40]} Kg8 {[%emt 0:00:05]} 52. Qe6+ {[%emt 0:04:19]} Kh7 {[%emt 0:00:28]} 1/2-1/2

[Event "Gibraltar Amateurs A 2019"]
[Site "Caleta"]
[Date "2019.01.23"]
[Round "3"]
[White "Portman, Carl S"]
[Black "Whitworth, John"]
[Result "1-0"]
[ECO "A06"]
[WhiteElo "1884"]
[BlackElo "1690"]
[Annotator "NA"]
[PlyCount "55"]
[EventDate "2019.01.18"]
[EventType "swiss"]
[EventCountry "GGB"]
[SourceTitle "playchess.com"]
[Source "ChessBase"]
[SourceQuality "1"]
[TimeControl "6600+10"]

1. Nf3 {[%emt 0:00:00]} d5 {[%emt 0:00:00]} 2. b3 {[%emt 0:00:31]} Nf6 {[%emt 0:00:59]} 3. Bb2 {[%emt 0:00:32]} Bg4 {[%emt 0:01:35]} 4. e3 {[%emt 0:03:04]} Nbd7 {[%emt 0:02:02]} 5. Be2 {[%emt 0:02:52]} e6 {[%emt 0:01:50]} 6. d3 {[%emt 0:02:34]} Bd6 {[%emt 0:05:43]} 7. Nbd2 {[%emt 0:01:13]} O-O {[%emt 0:00:38]} 8. h3 {[%emt 0:01:55]} Bxf3 {[%emt 0:02:47]} 9. Bxf3 {[%emt 0:02:54]} c6 {[%emt 0:00:44]} 10. g4 {[%emt 0:06:14]} e5 {[%emt 0:08:44]} 11. e4 {[%emt 0:05:23]} d4 {[%emt 0:04:25]} 12. Qe2 {[%emt 0:01:06]} Ne8 {[%emt 0:02:23]} 13. O-O-O {[%emt 0:02:49]} Nc7 {[%emt 0:03:09]} 14. h4 {[%emt 0:01:31]} Ne6 {[%emt 0:00:51]} 15. Rdg1 {[%emt 0:02:34]} b5 $19 {[%emt 0:01:17]} 16. Nb1 {[%emt 0:04:31]} Qe7 {[%emt 0:02:28]} 17. g5 {[%emt 0:03:05]} Nf4 {[%emt 0:00:52]} 18. Qd2 {[%emt 0:00:43]} a5 {[%emt 0:06:35]} 19. h5 {[%emt 0:06:28]} a4 {[%emt 0:04:38]} 20. g6 {[%emt 0:00:29]} fxg6 {[%emt 0:02:16]} 21. hxg6 {[%emt 0:01:08]} Nxg6 {[%emt 0:01:48]} 22. Bg4 {[%emt 0:02:57]} axb3 {[%emt 0:01:52]} 23. Bxd7 {[%emt 0:07:44]} bxa2 {[%emt 0:01:43]} 24. Bxc6 {[%emt 0:00:11]} a1=Q {[%emt 0:00:42]} 25. Bd5+ {[%emt 0:00:12]} Kh8 {[%emt 0:03:59]} 26. Qe2 {[%emt 0:05:41]} Qf6 {[%emt 0:11:53]} 27. Rxh7+ {[%emt 0:00:10]} Kxh7 {[%emt 0:00:10]} 28. Qh5# {[%emt 0:01:22]} 1-0

[Event "Gibraltar Amateurs A 2019"]
[Site "Caleta"]
[Date "2019.01.23"]
[Round "3"]
[White "Bryant, Richard B E"]
[Black "Sharma Pankaj"]
[Result "1/2-1/2"]
[ECO "C41"]
[WhiteElo "1862"]
[BlackElo "1809"]
[Annotator "NA"]
[PlyCount "135"]
[EventDate "2019.01.18"]
[EventType "swiss"]
[EventCountry "GGB"]
[SourceTitle "playchess.com"]
[Source "ChessBase"]
[SourceQuality "1"]
[TimeControl "6600+10"]

1. e4 {[%emt 0:00:00]} c6 {[%emt 0:00:00]} 2. Nc3 {[%emt 0:01:33]} e5 {[%emt 0:01:46]} 3. Nf3 {[%emt 0:00:00]} d6 {[%emt 0:00:58]} 4. Bc4 {[%emt 0:00:24] C41: Philidor Defence} Be7 {[%emt 0:00:00]} 5. d3 {[%emt 0:00:33]} Nf6 {[%emt 0:00:00]} 6. h3 {[%emt 0:00:32]} O-O {[%emt 0:00:24]} 7. O-O {[%emt 0:00:22]} a5 {[%emt 0:00:00]} (7... h6 8. Re1 Re8 9. a4 Nbd7 10. a5 Bf8 11. Bd2 Qc7 12. Qb1 b5 13. axb6 Nxb6 14. Bb3 {1-0 (72) Hamitevici,V (2502)-Yatzenko,A (2356) St Petersburg 2018}) 8. a4 {[%emt 0:00:18]} Na6 {[%emt 0:02:04]} 9. Bd2 {[%emt 0:02:26]} Nc5 {[%emt 0:08:50]} 10. Ba2 $146 {[%emt 0:01:42]} ({Predecessor:} 10. Re1 Be6 11. Bxe6 Nxe6 12. Ne2 {1-0 (44) Tyda,B (1895)-Kupsik,J (1600) Leba 2006}) 10... Be6 {[%emt 0:06:37]} 11. Re1 {[%emt 0:02:00]} Re8 {[%emt 0:02:29]} 12. Bxe6 {[%emt 0:00:44]} Nxe6 {[%emt 0:00:03]} 13. Ne2 {[%emt 0:06:28]} Bf8 {[%emt 0:07:27]} 14. Ng3 {[%emt 0:05:38]} g6 {[%emt 0:05:33]} 15. c3 {[%emt 0:07:21]} Bg7 {[%emt 0:02:26]} 16. Qc2 {[%emt 0:00:00]} c5 {[%emt 0:02:42]} 17. Nf1 {[%emt 0:03:54]} Nc7 {[%emt 0:02:20]} 18. Ne3 {[%emt 0:02:29]} d5 {[%emt 0:02:26]} 19. exd5 {[%emt 0:05:03]} Nfxd5 {[%emt 0:12:09]} 20. Nc4 {[%emt 0:01:04]} f6 {[%emt 0:04:54]} 21. Rad1 {[%emt 0:04:21]} Ne6 {[%emt 0:02:19]} 22. Bc1 {[%emt 0:03:40]} Qc7 {[%emt 0:01:28]} 23. Qb3 {[%emt 0:06:11]} Rad8 {[%emt 0:04:56]} 24. Qb5 {[%emt 0:12:54]} b6 {[%emt 0:11:02]} 25. d4 {[%emt 0:06:52]} exd4 {[%emt 0:04:25]} 26. cxd4 {[%emt 0:00:00]} Re7 {[%emt 0:01:58]} 27. dxc5 {[%emt 0:00:00]} Nxc5 {[%emt 0:00:00]} 28. Rxe7 {[%emt 0:00:00]} Qxe7 {[%emt 0:02:13]} 29. Re1 {[%emt 0:00:00]} Qd7 {[%emt 0:00:45]} 30. Qxd7 {[%emt 0:00:00]} Rxd7 {[%emt 0:00:00]} 31. Rd1 {[%emt 0:05:37]} Kf7 {[%emt 0:00:35]} 32. Ne3 {[%emt 0:00:00]} Nf4 {[%emt 0:05:21]} 33. Rxd7+ Nxd7 {[%emt 0:05:22]} 34. Bd2 {[%emt 0:00:27]} Nd3 {[%emt 0:02:38]} 35. Nc4 {[%emt 0:00:00]} N3c5 {[%emt 0:02:27]} 36. Be3 {[%emt 0:00:00]} Bf8 {[%emt 0:04:41]} 37. b3 {[%emt 0:03:12]} Nxb3 {[%emt 0:04:38]} 38. Nxb6 {[%emt 0:00:00]} Nxb6 {[%emt 0:00:06]} 39. Bxb6 {[%emt 0:00:00]} Bb4 {[%emt 0:00:11]} 40. Nd4 {[%emt 0:00:00]} Nxd4 {[%emt 0:00:17]} 41. Bxd4 {[%emt 0:00:00]} Ke6 {[%emt 0:00:06]} 42. Kf1 {[%emt 0:00:00]} Kd5 {[%emt 0:00:20]} 43. Bxf6 {[%emt 0:00:00]} Kc4 {[%emt 0:00:01]} 44. Ke2 {[%emt 0:00:00]} Kb3 {[%emt 0:00:12]} 45. Kd3 {[%emt 0:00:00]} Kxa4 {[%emt 0:00:30]} 46. Kc2 {[%emt 0:00:00]} Kb5 {[%emt 0:01:09]} 47. g4 {[%emt 0:00:00]} ({White must play} 47. Kd3 $1 $15) 47... Bd6 {[%emt 0:01:33]} 48. Bg5 {[%emt 0:00:00]} Kc4 {[%emt 0:01:25]} 49. f4 {[%emt 0:00:00]} a4 {[%emt 0:02:00]} 50. f5 {[%emt 0:00:00] [#]} Kd5 {[%emt 0:02:12]} ({Black should play} 50... gxf5 $1 $17 51. gxf5 Kd5) 51. f6 {[%emt 0:00:00]} (51. fxg6 $1 $11 hxg6 52. h4) 51... Ke6 {[%emt 0:05:33]} 52. Kc3 {[%emt 0:02:37]} Be5+ {[%emt 0:00:00]} 53. Kb4 {[%emt 0:00:08]} Bxf6 {[%emt 0:00:43]} 54. Bd2 {[%emt 0:01:31]} g5 {[%emt 0:00:00]} 55. Kxa4 {[%emt 0:02:15]} Kd5 $11 {[%emt 0:00:00]} 56. Kb5 {[%emt 0:02:28]} Bd8 {[%emt 0:00:00]} 57. Bc1 {[%emt 0:01:01]} Bf6 {[%emt 0:00:00]} 58. Bd2 {[%emt 0:01:41]} h6 {[%emt 0:00:00]} 59. Bb4 {[%emt 0:01:38]} Bg7 {[%emt 0:00:00]} 60. Kb6 {[%emt 0:02:17]} Ke4 {[%emt 0:00:00]} 61. Kc6 {[%emt 0:00:20]} Kf3 {[%emt 0:00:00]} 62. Kd5 {[%emt 0:00:14]} Kg3 {[%emt 0:00:00]} 63. Ke6 {[%emt 0:00:11]} Kxh3 {[%emt 0:00:00]} 64. Kf5 {[%emt 0:00:04]} Bd4 {[%emt 0:00:00]} 65. Bf8 {[%emt 0:00:39]} h5 {[%emt 0:00:00]} 66. gxh5 {[%emt 0:00:06]} g4 {[%emt 0:00:01]} 67. Bd6 {[%emt 0:00:26]} g3 {[%emt 0:00:00]} 68. Bxg3 {[%emt 0:00:07]} 1/2-1/2